bitfinex/quotes_BTCUSD_20240718
["timestamp","ask_amount","ask_price","bid_price","bid_amount"]
[1721281245768,0.00834,64764.0,64763.0,1.46215784]
[1721281245991,0.00834,64764.0,64763.0,1.59036807]
[1721281246674,0.007814,64764.0,64763.0,1.59036807]
[1721281249087,0.007814,64764.0,64763.0,1.59036309]
[1721281252184,0.007814,64764.0,64763.0,1.46215784]
[1721281252404,0.007814,64764.0,64763.0,1.59036686]
[1721281255603,0.007814,64764.0,64763.0,1.46215784]
[1721281255822,0.007814,64764.0,64763.0,1.59036699]
[1721281256704,0.00880224,64764.0,64763.0,1.59036699]
[1721281257144,0.15350224,64764.0,64763.0,1.59036699]
[1721281258814,0.15350224,64764.0,64763.0,1.46215784]
[1721281259041,0.15350224,64764.0,64763.0,1.71857752]
[1721281261145,0.152514,64764.0,64763.0,1.71857752]
[1721281261835,0.152514,64764.0,64763.0,1.71857747]
[1721281261836,0.007814,64764.0,64763.0,1.71857747]
[1721281262059,0.010608,64764.0,64763.0,1.71857747]
[1721281264549,0.010608,64764.0,64763.0,1.71857709]
[1721281265243,0.007814,64764.0,64763.0,1.71857709]
[1721281265477,0.007814,64764.0,64763.0,1.44429825]
[1721281266185,0.007814,64764.0,64763.0,1.59870725]
[1721281266409,0.010608,64764.0,64763.0,1.59870725]
[1721281266628,0.007814,64764.0,64763.0,1.59870725]
[1721281267521,0.007814,64764.0,64763.0,1.59870677]
[1721281267973,0.010608,64764.0,64763.0,1.59870677]
[1721281268444,0.007814,64764.0,64763.0,1.59870677]
[1721281269132,0.007814,64764.0,64763.0,1.90752477]
[1721281269347,0.007814,64764.0,64763.0,1.59870677]
[1721281269813,0.007814,64764.0,64763.0,1.90752477]
[1721281270988,0.007814,64764.0,64763.0,1.59870677]
[1721281271683,0.007814,64764.0,64763.0,1.90752477]
[1721281272120,0.007814,64764.0,64763.0,1.59870677]
[1721281272356,0.010608,64764.0,64763.0,1.59870677]
[1721281272572,0.007814,64764.0,64763.0,1.59870677]
[1721281272796,0.010608,64764.0,64763.0,1.59870677]
[1721281273020,0.007814,64764.0,64763.0,1.59870677]
[1721281273276,0.010608,64764.0,64763.0,1.52830677]
[1721281273466,0.010608,64764.0,64763.0,1.59870677]
[1721281273686,0.010608,64764.0,64763.0,1.58470677]
[1721281273910,0.010608,64764.0,64763.0,1.47049784]
[1721281274173,0.010608,64764.0,64763.0,1.58470689]
[1721281274392,0.010608,64764.0,64763.0,1.59870689]
[1721281274630,0.007814,64764.0,64763.0,1.58470689]
[1721281274872,0.007814,64764.0,64763.0,1.61270689]
[1721281276013,0.00880224,64764.0,64763.0,1.61270689]
[1721281276445,0.07290224,64764.0,64763.0,1.61270689]
[1721281278011,0.071914,64764.0,64763.0,1.61270689]
[1721281278232,0.07290224,64764.0,64763.0,1.61270689]
[1721281278761,0.071914,64764.0,64763.0,1.61270689]
[1721281280304,0.071914,64764.0,64763.0,1.61270898]
[1721281280761,0.071914,64764.0,64763.0,1.6127109]
[1721281281027,0.007814,64764.0,64763.0,1.6127109]
[1721281281250,0.010608,64764.0,64763.0,1.6136239]
[1721281281470,0.007814,64764.0,64763.0,1.7550239]
[1721281281697,0.007814,64764.0,64763.0,2.0638419]
[1721281281924,0.007814,64764.0,64763.0,1.9224419]
[1721281282173,0.007814,64764.0,64763.0,1.6136239]
[1721281283370,0.007814,64764.0,64763.0,1.48541084]
[1721281283655,0.007814,64764.0,64763.0,1.61361406]
[1721281284096,0.007814,64764.0,64763.0,1.51361406]
[1721281289526,0.007814,64764.0,64763.0,1.38541084]
[1721281289747,0.007814,64764.0,64763.0,1.5136148]
[1721281290210,0.007814,64764.0,64763.0,1.51361456]
[1721281292868,0.007814,64764.0,64763.0,1.51361468]
[1721281295842,0.007814,64764.0,64763.0,1.38541084]
[1721281296051,0.007814,64764.0,64763.0,1.51361474]
[1721281298949,0.150314,64764.0,64763.0,1.51361474]
[1721281299177,0.150314,64764.0,64763.0,1.5136148]
[1721281302306,0.150314,64764.0,64763.0,1.5136142]
[1721281302526,0.150314,64764.0,64763.0,1.51361403]
[1721281303820,0.072314,64764.0,64763.0,1.51361403]
[1721281304268,0.007814,64764.0,64763.0,1.51361403]
[1721281304720,0.007814,64764.0,64763.0,1.6506065]
[1721281305418,0.007814,64764.0,64763.0,1.52240331]
[1721281305648,0.007814,64764.0,64763.0,1.6506069]
[1721281306061,0.007814,64764.0,64763.0,1.5900069]
[1721281308520,0.007814,64764.0,64763.0,1.46180331]
[1721281308736,0.007814,64764.0,64763.0,1.59000587]
[1721281309251,0.007814,64764.0,64763.0,1.59000576]
[1721281309480,0.007814,64764.0,64763.0,1.89882376]
[1721281310375,0.007814,64764.0,64763.0,1.99882376]
[1721281310607,1.976933,64765.0,64764.0,1.77976976]
[1721281310880,1.976933,64765.0,64764.0,3.08372778]
[1721281311031,1.976933,64765.0,64764.0,3.11616071]
[1721281311509,1.976933,64765.0,64764.0,3.208438]
[1721281311727,1.976933,64765.0,64764.0,3.25234546]
[1721281311982,1.976933,64765.0,64764.0,3.26104288]
[1721281312165,1.976933,64765.0,64764.0,3.23040734]
[1721281312669,1.976933,64765.0,64764.0,3.1828687]
[1721281312875,1.976933,64765.0,64764.0,3.27511668]
[1721281313082,1.976933,64765.0,64764.0,3.23048114]
[1721281313303,1.976933,64765.0,64764.0,2.96353451]
[1721281313511,1.976933,64765.0,64764.0,3.04671542]
[1721281313696,1.977763,64765.0,64764.0,3.04671542]
[1721281313938,1.977763,64765.0,64764.0,2.99770366]
[1721281314151,1.977763,64765.0,64764.0,3.04671542]
[1721281314361,1.977763,64765.0,64764.0,2.91982533]
[1721281314553,1.977763,64765.0,64764.0,2.98899513]
[1721281315019,1.977763,64765.0,64764.0,2.96883473]
[1721281315489,1.977763,64765.0,64764.0,3.03799327]
[1721281316648,1.823358,64765.0,64764.0,3.64487837]
[1721281316902,1.823358,64765.0,64764.0,3.56770358]
[1721281317127,1.823358,64765.0,64764.0,3.61263486]
[1721281317377,1.61065578,64765.0,64764.0,3.58174919]
[1721281317597,1.61065578,64765.0,64764.0,2.98112486]
[1721281317816,1.61065578,64765.0,64764.0,2.9593373]
[1721281318040,1.61065578,64765.0,64764.0,3.02847889]
[1721281318495,1.61065578,64765.0,64764.0,2.42478567]
[1721281318708,1.61065578,64765.0,64764.0,2.68619839]
[1721281319614,1.61065578,64765.0,64764.0,2.55296618]
[1721281320500,1.61065578,64765.0,64764.0,2.57144633]
[1721281320972,1.61065578,64765.0,64764.0,2.57144637]
[1721281321655,1.61065578,64765.0,64764.0,2.62045813]
[1721281322147,1.61065578,64765.0,64764.0,3.07748093]
[1721281322330,1.61065578,64765.0,64764.0,2.73520317]
[1721281323421,1.61065578,64765.0,64764.0,3.07747956]
[1721281323629,1.61065578,64765.0,64764.0,3.07745256]
[1721281323863,1.61065578,64765.0,64764.0,2.73518131]
[1721281325183,1.61065578,64765.0,64764.0,3.07745513]
[1721281325413,1.61065578,64765.0,64764.0,3.10049427]
[1721281326113,1.61065578,64765.0,64764.0,3.00833772]
[1721281326551,1.61065578,64765.0,64764.0,2.35438567]
[1721281326769,1.61065578,64765.0,64764.0,2.54505611]
[1721281327024,1.61065578,64765.0,64764.0,2.12612176]
[1721281327278,1.61065578,64765.0,64764.0,2.08005621]
[1721281327494,1.61065578,64765.0,64764.0,2.00965621]
[1721281327495,1.67265578,64765.0,64764.0,2.00965621]
[1721281327718,1.67265578,64765.0,64764.0,1.90966667]
[1721281327933,1.67265578,64765.0,64764.0,1.98006667]
[1721281328617,0.06283,64765.0,64764.0,1.98006667]
[1721281329082,0.06283,64765.0,64764.0,2.08006667]
[1721281329324,0.00083,64765.0,64764.0,2.08006667]
[1721281329785,0.00083,64765.0,64764.0,2.08007122]
[1721281330934,0.00083,64765.0,64764.0,2.12908298]
[1721281331583,0.00083,64765.0,64764.0,2.46089598]
[1721281332005,0.00083,64765.0,64764.0,2.41188422]
[1721281332238,0.00083,64765.0,64764.0,2.08007122]
[1721281332472,0.06343,64765.0,64764.0,2.08007122]
[1721281332710,0.00083,64765.0,64764.0,1.95187267]
[1721281332932,0.00083,64765.0,64764.0,2.08006086]
[1721281335900,0.00083,64765.0,64764.0,2.21157918]
[1721281336368,0.00083,64765.0,64764.0,2.03437267]
[1721281336584,0.00083,64765.0,64764.0,2.16256718]
[1721281337025,0.00083,64765.0,64764.0,2.08006718]
[1721281337744,0.14323,64765.0,64764.0,2.08006718]
[1721281338194,0.00083,64765.0,64764.0,2.08006718]
[1721281339072,0.00083,64765.0,64764.0,2.08006754]
[1721281340665,0.14843,64765.0,64764.0,1.70085454]
[1721281340904,0.14843,64765.0,64764.0,1.77125454]
[1721281342241,0.14843,64765.0,64764.0,1.77126386]
[1721281342963,0.06603,64765.0,64764.0,1.77126386]
[1721281343608,0.00083,64765.0,64764.0,1.77126386]
[1721281345652,0.00083,64765.0,64764.0,1.77217686]
[1721281345877,0.00083,64765.0,64764.0,1.77217655]
[1721281348447,0.00083,64765.0,64764.0,1.64397267]
[1721281348667,0.00083,64765.0,64764.0,1.77217655]
[1721281349090,0.14223,64765.0,64764.0,1.77217655]
[1721281351527,0.14223,64765.0,64764.0,1.64397267]
[1721281351788,0.14223,64765.0,64764.0,1.77217669]
[1721281352271,0.14321824,64765.0,64764.0,1.77217669]
[1721281353158,0.14321824,64765.0,64764.0,1.75817669]
[1721281353579,0.14321824,64765.0,64764.0,1.75817913]
[1721281354519,0.14321824,64765.0,64764.0,1.74417913]
[1721281354757,0.14223,64765.0,64764.0,1.74417913]
[1721281354986,0.14223,64765.0,64764.0,1.75617913]
[1721281355201,0.14223,64765.0,64764.0,1.7561792]
[1721281355461,0.14223,64765.0,64764.0,1.7691792]
[1721281357962,0.14223,64765.0,64764.0,1.76917915]
[1721281360877,0.14321824,64765.0,64764.0,1.76917915]
[1721281361134,0.14321824,64765.0,64764.0,1.64097267]
[1721281361581,0.14321824,64765.0,64764.0,1.76917915]
[1721281363105,0.14321824,64765.0,64764.0,1.69877915]
[1721281363316,0.14321824,64765.0,64764.0,1.76917915]
[1721281364483,0.14321824,64765.0,64764.0,0.65294667]
[1721281364715,0.14321824,64765.0,64764.0,0.34413367]
[1721281364922,0.14321824,64765.0,64764.0,0.18972767]
[1721281365581,0.14321824,64765.0,64764.0,0.17772767]
[1721281366063,0.14321824,64765.0,64764.0,0.17072767]
[1721281366291,0.14321824,64765.0,64764.0,0.02434593]
[1721281366774,0.14321824,64765.0,64764.0,0.01634593]
[1721281367266,0.14321824,64765.0,64764.0,0.01934593]
[1721281367452,0.14321824,64765.0,64764.0,0.01334593]
[1721281367658,0.14321824,64765.0,64764.0,0.01034593]
[1721281367876,0.14321824,64765.0,64764.0,0.01134593]
[1721281368134,0.14321824,64765.0,64764.0,0.01034593]
[1721281368370,0.14421824,64765.0,64764.0,0.01034593]
[1721281368629,0.14701224,64765.0,64764.0,0.01034593]
[1721281368883,0.29862224,64765.0,64764.0,0.01034593]
[1721281369121,0.29862224,64765.0,64764.0,0.01134593]
[1721281369379,0.29862224,64765.0,64764.0,0.001913]
[1721281370065,0.14421824,64765.0,64764.0,0.001913]
[1721281370332,0.14701224,64765.0,64764.0,0.001913]
[1721281372944,0.146024,64765.0,64764.0,0.001913]
[1721281373397,0.146024,64765.0,64764.0,0.01135264]
[1721281373609,0.30141624,64765.0,64764.0,0.01135264]
[1721281373833,0.29862224,64765.0,64764.0,0.01135264]
[1721281374045,0.29862224,64765.0,64764.0,0.001913]
[1721281375651,0.60743024,64765.0,64764.0,0.001913]
[1721281376101,0.96247331,64765.0,64764.0,0.001913]
[1721281376323,0.91623824,64765.0,64764.0,0.001913]
[1721281376982,0.91623824,64765.0,64764.0,0.000913]
[1721281377857,0.91723824,64765.0,64764.0,0.000913]
[1721281379654,0.60843024,64765.0,64764.0,0.000913]
[1721281382049,0.14521824,64765.0,64764.0,0.000913]
[1721281382260,0.14801224,64765.0,64764.0,0.000913]
[1721281382482,0.14521824,64765.0,64764.0,0.0103824]
[1721281384623,0.14521824,64765.0,64764.0,0.0103824]
[1721281384858,0.298634,64765.0,64764.0,0.0103824]
[1721281385325,0.29962224,64765.0,64764.0,0.0103824]
[1721281385799,0.29962224,64765.0,64764.0,0.000913]
[1721281386292,0.60843024,64765.0,64764.0,0.000913]
[1721281388318,0.607442,64765.0,64764.0,0.000913]
[1721281389750,0.60843024,64765.0,64764.0,0.000913]
[1721281390199,0.006514,64760.0,64759.0,0.154418]
[1721281390419,0.00750224,64760.0,64759.0,0.30879974]
[1721281390641,0.00750224,64760.0,64759.0,0.31827073]
[1721281391537,0.00750224,64760.0,64759.0,0.31927073]
[1721281396916,0.15210224,64760.0,64759.0,0.31927073]
[1721281400430,0.15210224,64760.0,64759.0,0.16485273]
[1721281404246,0.15210224,64760.0,64759.0,0.31927073]
[1721281405755,0.07340224,64760.0,64759.0,0.31927073]
[1721281406121,0.00750224,64760.0,64759.0,0.31927073]
[1721281406928,0.00750224,64760.0,64759.0,0.62810773]
[1721281410352,0.00750224,64760.0,64759.0,0.62902073]
[1721281410565,0.07691024,64760.0,64759.0,0.62902073]
[1721281410980,0.07702827,64760.0,64759.0,0.62902073]
[1721281411464,0.07703228,64760.0,64759.0,0.62902073]
[1721281414126,0.07703835,64760.0,64759.0,0.93785773]
[1721281414351,0.05386182,64760.0,64759.0,0.93785773]
[1721281414579,0.00750224,64760.0,64759.0,0.93785773]
[1721281415653,0.07704161,64760.0,64759.0,0.93785773]
[1721281417004,0.00750224,64760.0,64759.0,0.93785773]
[1721281417441,0.07704292,64760.0,64759.0,0.93785773]
[1721281417939,0.05386306,64760.0,64759.0,0.93785773]
[1721281419288,0.00750224,64760.0,64759.0,0.93785773]
[1721281421407,0.006514,64760.0,64759.0,1.39069473]
[1721281421664,0.006514,64760.0,64759.0,1.58931877]
[1721281422105,0.00750224,64760.0,64759.0,1.58931877]
[1721281423444,0.00750224,64760.0,64759.0,1.58932069]
[1721281423659,0.00750224,64760.0,64759.0,1.58932108]
[1721281424164,0.006514,64760.0,64759.0,1.58932108]
[1721281424335,0.00750224,64760.0,64759.0,1.51892108]
[1721281424568,0.00750224,64760.0,64759.0,1.58932108]
[1721281425211,0.00750224,64760.0,64759.0,1.46109473]
[1721281425639,0.00750224,64760.0,64759.0,1.4538201]
[1721281425862,0.00750224,64760.0,64759.0,1.32559473]
[1721281427189,0.00750224,64760.0,64759.0,1.24669473]
[1721281428022,0.006514,64760.0,64759.0,1.46479473]
[1721281428467,0.00750224,64760.0,64759.0,1.46479473]
[1721281430563,0.00098824,64760.0,64759.0,1.45828073]
[1721281431842,0.00098824,64760.0,64759.0,1.08474373]
[1721281432068,0.14528824,64760.0,64759.0,0.62250673]
[1721281434769,0.1443,64760.0,64759.0,0.62250673]
[1721281434983,0.1443,64760.0,64759.0,0.31366973]
[1721281434984,0.14528824,64760.0,64759.0,0.31366973]
[1721281435206,0.14528824,64760.0,64759.0,0.62250673]
[1721281438641,0.14528824,64760.0,64759.0,0.31366973]
[1721281441316,0.19161767,64760.0,64759.0,0.31366973]
[1721281441533,0.14528824,64760.0,64759.0,0.31366973]
[1721281441989,0.19161913,64760.0,64759.0,0.31366973]
[1721281444382,0.19244913,64760.0,64759.0,0.31366973]
[1721281445088,0.19244932,64760.0,64759.0,0.31366973]
[1721281448368,0.1924498,64760.0,64759.0,0.31366973]
[1721281448801,0.19245,64760.0,64759.0,0.31366973]
[1721281449429,0.19245002,64760.0,64759.0,0.31366973]
[1721281450321,0.19245002,64760.0,64759.0,0.01138399]
[1721281450777,0.14611824,64760.0,64759.0,0.01138399]
[1721281451202,0.14611824,64760.0,64759.0,0.01038399]
[1721281451641,0.15091224,64760.0,64759.0,0.01038399]
[1721281451855,0.15091224,64760.0,64759.0,0.000913]
[1721281452271,0.19724453,64760.0,64759.0,0.000913]
[1721281452513,0.19824453,64760.0,64759.0,0.000913]
[1721281452715,0.19545053,64760.0,64759.0,0.000913]
[1721281452938,0.19545053,64760.0,64759.0,0.154418]
[1721281453348,0.19545053,64760.0,64759.0,0.00940025]
[1721281453566,0.19545053,64760.0,64757.0,0.154421]
[1721281453785,0.002794,64759.0,64758.0,0.16382025]
[1721281454460,0.00378224,64759.0,64758.0,0.16382025]
[1721281455326,0.00478224,64759.0,64758.0,0.16382025]
[1721281455550,0.003794,64759.0,64758.0,0.16382025]
[1721281455759,0.00478224,64759.0,64758.0,0.16382025]
[1721281457255,0.003794,64759.0,64758.0,0.16382025]
[1721281460498,0.00478224,64759.0,64758.0,0.16382025]
[1721281461143,0.00478224,64759.0,64758.0,0.62704399]
[1721281461792,0.00198824,64759.0,64758.0,0.62704399]
[1721281462868,0.001,64759.0,64758.0,0.62704399]
[1721281465551,0.00198824,64759.0,64758.0,0.62704399]
[1721281465768,0.001,64759.0,64758.0,0.62704399]
[1721281466188,0.00198824,64759.0,64758.0,0.62704399]
[1721281466878,0.001,64759.0,64758.0,0.62704399]
[1721281467909,0.00198824,64759.0,64758.0,0.62704399]
[1721281469006,0.001,64759.0,64758.0,1.45852799]
[1721281469251,0.00198824,64759.0,64758.0,1.45852799]
[1721281469947,0.00098824,64759.0,64758.0,1.45852799]
[1721281470388,0.00098824,64759.0,64758.0,1.46152799]
[1721281471912,0.00098824,64759.0,64758.0,1.46452799]
[1721281472355,0.00083,64760.0,64759.0,1.080929]
[1721281472558,0.00083,64760.0,64759.0,1.31681074]
[1721281472559,0.00181824,64760.0,64759.0,1.31681074]
[1721281472775,0.00181824,64760.0,64759.0,1.32621402]
[1721281473603,0.00181824,64760.0,64759.0,1.33691109]
[1721281473820,0.00181824,64760.0,64759.0,1.33791109]
[1721281475320,0.00181824,64760.0,64759.0,1.46613653]
[1721281475598,0.00083,64760.0,64759.0,1.46613653]
[1721281477069,0.00083,64760.0,64759.0,1.46613493]
[1721281477582,0.00083,64760.0,64759.0,1.46613523]
[1721281477786,0.00181824,64760.0,64759.0,1.46613523]
[1721281478189,0.00181824,64760.0,64759.0,1.33791109]
[1721281478414,0.00181824,64760.0,64759.0,1.46613793]
[1721281478656,0.00083,64760.0,64759.0,1.46613793]
[1721281479734,0.00181824,64760.0,64759.0,1.46613793]
[1721281480154,0.00181824,64760.0,64759.0,1.33791109]
[1721281480368,0.00181824,64760.0,64759.0,1.46613448]
[1721281483454,0.00181824,64760.0,64759.0,1.33791109]
[1721281483667,0.00181824,64760.0,64759.0,1.46613321]
[1721281486311,0.00083,64760.0,64759.0,1.46613321]
[1721281486958,0.00181824,64760.0,64759.0,1.46613321]
[1721281489335,0.00181824,64760.0,64759.0,1.46613323]
[1721281489782,0.00181824,64760.0,64759.0,1.33791109]
[1721281490005,0.00181824,64760.0,64759.0,1.4661329]
[1721281492748,0.00181824,64760.0,64759.0,1.25641109]
[1721281496800,0.14091824,64760.0,64759.0,1.25641109]
[1721281500527,0.00181824,64760.0,64759.0,1.25641109]
[1721281501437,0.00083,64760.0,64759.0,1.25641109]
[1721281501696,0.00083,64760.0,64759.0,1.39361109]
[1721281501905,0.00083,64760.0,64759.0,1.52183623]
[1721281502789,0.00083,64760.0,64759.0,1.51313916]
[1721281504139,0.00181824,64760.0,64759.0,1.51313916]
[1721281504369,0.00181824,64760.0,64759.0,1.45293916]
[1721281504615,0.00181824,64760.0,64759.0,1.06710216]
[1721281504616,0.06731824,64760.0,64759.0,1.06710216]
[1721281504880,0.06731824,64760.0,64759.0,0.93887702]
[1721281505353,0.06731824,64760.0,64759.0,1.00927702]
[1721281505354,0.00181824,64760.0,64759.0,1.00927702]
[1721281506244,0.00181824,64760.0,64759.0,1.1375035]
[1721281506465,0.00181824,64760.0,64759.0,1.2200035]
[1721281507353,0.00083,64760.0,64759.0,1.2200035]
[1721281507596,0.00181824,64760.0,64759.0,1.2200035]
[1721281508079,0.00181824,64760.0,64759.0,1.22000073]
[1721281509410,0.00083,64760.0,64759.0,1.22000073]
[1721281509851,0.00083,64760.0,64759.0,1.28360073]
[1721281510075,0.00181824,64760.0,64759.0,1.28360073]
[1721281510508,0.00083,64760.0,64759.0,1.28360073]
[1721281510738,0.00083,64760.0,64759.0,1.59243773]
[1721281510961,0.00181824,64760.0,64759.0,1.59243773]
[1721281511206,0.00181824,64760.0,64759.0,1.15537702]
[1721281511478,0.00181824,64760.0,64759.0,1.28359894]
[1721281512110,0.00181824,64760.0,64759.0,1.59243594]
[1721281514036,0.00181824,64760.0,64759.0,1.52883594]
[1721281514491,0.00181824,64760.0,64759.0,1.52883658]
[1721281514709,0.00083,64760.0,64759.0,1.52883658]
[1721281514927,0.00083,64760.0,64759.0,1.40061402]
[1721281515197,0.00083,64760.0,64759.0,1.5288355]
[1721281517398,0.00083,64760.0,64759.0,1.7932355]
[1721281517645,0.00083,64760.0,64759.0,1.7932339]
[1721281518089,0.00083,64760.0,64759.0,2.1020709]
[1721281519630,0.00083,64760.0,64759.0,1.7932339]
[1721281520353,0.00083,64760.0,64759.0,2.1020709]
[1721281520572,0.00083,64760.0,64759.0,1.66501402]
[1721281520793,0.00083,64760.0,64759.0,1.79322282]
[1721281523067,0.00181824,64760.0,64759.0,1.64632282]
[1721281523739,0.00181824,64760.0,64759.0,1.51811402]
[1721281523958,0.00181824,64760.0,64759.0,1.44633238]
[1721281524438,0.00181824,64760.0,64759.0,1.44633247]
[1721281526599,0.14451824,64760.0,64759.0,1.37593247]
[1721281526796,0.14451824,64760.0,64759.0,1.24771402]
[1721281527077,0.14451824,64760.0,64759.0,1.37593296]
[1721281530065,0.14451824,64760.0,64759.0,1.24771402]
[1721281530284,0.14451824,64760.0,64759.0,1.37593316]
[1721281531181,0.00083,64760.0,64759.0,1.51863316]
[1721281533190,0.00083,64760.0,64759.0,1.39041402]
[1721281533374,0.00083,64760.0,64759.0,1.51862797]
[1721281534276,0.00083,64760.0,64759.0,1.51862764]
[1721281536377,0.00083,64760.0,64759.0,1.5186274]
[1721281539202,0.00181824,64760.0,64759.0,1.5186274]
[1721281539431,0.00181824,64760.0,64759.0,1.4463274]
[1721281539432,0.00083,64760.0,64759.0,1.4463274]
[1721281539614,0.00083,64760.0,64759.0,1.44632516]
[1721281540243,0.00083,64760.0,64759.0,1.58952516]
[1721281542006,0.00083,64760.0,64759.0,1.59043816]
[1721281542640,0.00083,64760.0,64759.0,1.79043779]
[1721281542853,0.00083,64760.0,64759.0,2.22748556]
[1721281543065,0.00083,64760.0,64759.0,2.09927479]
[1721281543303,0.00083,64760.0,64759.0,2.22748391]
[1721281543728,0.00083,64760.0,64759.0,2.22548391]
[1721281543939,0.00083,64760.0,64759.0,2.22448391]
[1721281544160,0.00083,64760.0,64759.0,2.23948391]
[1721281545739,0.00083,64760.0,64759.0,2.11127479]
[1721281545953,0.00083,64760.0,64759.0,2.2394771]
[1721281546868,0.00083,64763.0,64762.0,2.064633]
[1721281547090,0.00083,64763.0,64762.0,3.28913667]
[1721281547341,0.00083,64763.0,64762.0,3.41195504]
[1721281547554,0.00083,64763.0,64762.0,3.88501514]
[1721281547970,0.00083,64763.0,64762.0,3.7697898]
[1721281548184,0.00083,64763.0,64762.0,3.71515964]
[1721281548396,0.00083,64763.0,64762.0,3.72915964]
[1721281548612,0.00083,64763.0,64762.0,3.71515964]
[1721281548821,0.00083,64763.0,64762.0,3.58689704]
[1721281549036,0.00083,64763.0,64762.0,3.71507624]
[1721281549248,0.00083,64763.0,64762.0,3.9745352]
[1721281549476,0.00083,64763.0,64762.0,4.08965946]
[1721281549688,0.00083,64763.0,64762.0,3.79720053]
[1721281549925,0.00083,64763.0,64762.0,3.9745352]
[1721281550343,0.00083,64765.0,64764.0,2.23232576]
[1721281550552,0.00083,64765.0,64764.0,3.08726445]
[1721281550767,0.00083,64765.0,64764.0,3.1456146]
[1721281551189,0.00083,64765.0,64764.0,3.05359009]
[1721281551627,0.002794,64784.0,64775.0,1.620354]
[1721281551851,0.0649,64786.0,64775.0,1.620354]
[1721281551852,0.0649,64786.0,64775.0,1.89773574]
[1721281552074,0.0649,64786.0,64775.0,2.41437258]
[1721281552542,0.0649,64786.0,64775.0,2.28620808]
[1721281552765,0.0649,64786.0,64775.0,2.41437233]
[1721281552985,0.0649,64786.0,64775.0,2.42837233]
[1721281553440,0.0649,64786.0,64775.0,2.47738409]
[1721281553655,0.0649,64786.0,64775.0,2.57748084]
[1721281553893,0.00098824,64787.0,64775.0,2.52846908]
[1721281554563,0.00834,64798.0,64775.0,2.64258084]
[1721281554780,0.00098824,64787.0,64775.0,2.64258084]
[1721281555238,0.00098824,64787.0,64775.0,2.64257218]
[1721281555681,0.00098824,64787.0,64775.0,2.62857218]
[1721281556110,0.00098824,64787.0,64775.0,2.64257218]
[1721281556544,0.00098824,64787.0,64775.0,2.62857218]
[1721281556763,0.0619,64793.0,64777.0,1.93839076]
[1721281556987,0.0619,64793.0,64777.0,2.79537884]
[1721281557171,0.0619,64793.0,64777.0,2.8046858]
[1721281558355,0.0619,64793.0,64777.0,2.69053046]
[1721281558630,0.0619,64793.0,64777.0,2.81868323]
[1721281558855,0.0619,64793.0,64777.0,2.83268323]
[1721281559956,0.0619,64793.0,64777.0,2.84138023]
[1721281561034,0.0619,64793.0,64777.0,2.84138011]
[1721281561541,0.0619,64793.0,64777.0,2.71322746]
[1721281561760,0.0619,64793.0,64777.0,2.84137912]
[1721281561982,0.14818824,64795.0,64790.0,1.5891]
[1721281562200,0.06718824,64795.0,64790.0,1.91388174]
[1721281562634,0.06718824,64795.0,64790.0,1.9231887]
[1721281563297,0.00098824,64795.0,64790.0,1.9301887]
[1721281564157,0.00098824,64795.0,64790.0,1.9361887]
[1721281565074,0.00668,64792.0,64791.0,1.080394]
[1721281565292,0.00668,64792.0,64791.0,1.33477574]
[1721281565573,0.00668,64792.0,64791.0,1.34406286]
[1721281565803,0.00668,64792.0,64791.0,1.35275986]
[1721281566498,0.00668,64792.0,64791.0,1.35775986]
[1721281566963,0.00668,64792.0,64791.0,2.30491865]
[1721281567202,0.00668,64792.0,64791.0,2.51066423]
[1721281567691,0.00668,64792.0,64791.0,2.54159423]
[1721281567938,0.00834,64798.0,64791.0,2.54159423]
[1721281567939,0.00834,64798.0,64797.0,1.588952]
[1721281568143,0.00834,64798.0,64797.0,2.20817932]
[1721281568370,0.00834,64798.0,64797.0,2.24837434]
[1721281568596,0.00834,64798.0,64797.0,2.52610034]
[1721281568813,0.00834,64801.0,64800.0,1.93789576]
[1721281569038,0.00834,64801.0,64800.0,2.79506408]
[1721281569265,0.00834,64801.0,64800.0,2.43741132]
[1721281569482,0.00834,64801.0,64800.0,2.51707634]
[1721281569912,0.00834,64801.0,64800.0,2.38893076]
[1721281570134,0.00834,64801.0,64800.0,2.51703881]
[1721281570598,0.00834,64801.0,64800.0,2.82567969]
[1721281570817,0.00834,64801.0,64800.0,2.87469145]
[1721281571476,0.00834,64801.0,64800.0,2.88338845]
[1721281571712,0.00834,64801.0,64800.0,2.89738845]
[1721281571941,0.002794,64814.0,64800.0,2.89738845]
[1721281571942,0.002794,64814.0,64805.0,2.11634076]
[1721281572189,0.002794,64814.0,64813.0,0.6938]
[1721281572190,0.46304871,64814.0,64813.0,0.6938]
[1721281572405,0.00834,64815.0,64814.0,0.185217]
[1721281572637,0.00834,64815.0,64814.0,1.39343167]
[1721281572871,0.00834,64815.0,64814.0,1.55893167]
[1721281573097,0.00834,64815.0,64814.0,1.56811174]
[1721281573322,0.00834,64815.0,64814.0,1.87668674]
[1721281573811,0.00834,64815.0,64814.0,2.18526174]
[1721281574043,0.00834,64815.0,64814.0,2.20826174]
[1721281574271,0.00834,64815.0,64814.0,2.2572735]
[1721281574712,0.00834,64815.0,64814.0,2.2712735]
[1721281574928,0.00834,64815.0,64814.0,2.32695937]
[1721281575409,0.00834,64815.0,64814.0,2.2799705]
[1721281575629,0.00834,64815.0,64814.0,1.85688374]
[1721281575860,0.00834,64815.0,64814.0,1.80295374]
[1721281576084,0.00834,64815.0,64814.0,1.74526574]
[1721281576367,0.00834,64815.0,64814.0,1.36629074]
[1721281576567,0.00834,64815.0,64814.0,1.43669074]
[1721281576801,0.00932824,64815.0,64814.0,1.43669074]
[1721281577032,0.15172824,64815.0,64814.0,1.43669074]
[1721281577257,0.15172824,64815.0,64814.0,1.45069074]
[1721281577490,0.15074,64815.0,64814.0,1.43669074]
[1721281577761,0.15172824,64815.0,64814.0,1.42269074]
[1721281577996,0.15172824,64815.0,64814.0,1.45069074]
[1721281577997,0.15074,64815.0,64814.0,1.45069074]
[1721281578444,0.07374,64815.0,64814.0,1.46762074]
[1721281578690,0.00834,64815.0,64814.0,1.46762074]
[1721281578920,0.00834,64815.0,64814.0,1.79019574]
[1721281579146,0.00834,64815.0,64814.0,1.48162074]
[1721281579373,0.00834,64815.0,64814.0,1.60971314]
[1721281579604,0.00834,64815.0,64814.0,1.79019574]
[1721281579826,0.00834,64815.0,64814.0,1.9182863]
[1721281580320,0.00834,64815.0,64814.0,1.9925563]
[1721281581656,0.00834,64815.0,64814.0,2.06456806]
[1721281581890,0.00834,64815.0,64814.0,2.48124785]
[1721281582323,0.00834,64815.0,64814.0,2.48124737]
[1721281582770,0.00834,64815.0,64814.0,2.60301637]
[1721281582992,0.00834,64815.0,64814.0,2.68531637]